[Event "41st Zalakaros Festival 2022"]
[Site "Zalakaros"]
[Date "2022.06.06"]
[Round "2.1"]
[White "Forgacs, Attila Jr."]
[Black "Kantor, Gergely"]
[Result "0-1"]
[ECO "C88"]
[WhiteElo "2234"]
[BlackElo "2587"]
[Annotator "TA"]
[PlyCount "66"]
[EventDate "2022.06.05"]
[EventType "swiss"]
[EventCountry "HUN"]
[SourceTitle "playchess.com"]
[Source "ChessBase"]
[SourceQuality "1"]
[TimeControl "40/5400+30:1800+30"]

{[%evp 25,66,22,19,16,14,13,20,5,5,8,0,8,25,34,36,32,35,57,284,104,116,91,80,0,0,0,29,-91,-94,-196,-182,-160,-162,-829,-810,-810,-810,-29985,-29942,-5775,-5775,-29995,-29996]} 1. e4 {[%emt 0:00:33]} e5 {[%emt 0:02:56]} 2. Nf3 {[%emt 0:00:05]} Nc6 {[%emt 0:01:05]} 3. Bb5 {[%emt 0:00:10]} a6 {[%emt 0:00:07]} 4. Ba4 {[%emt 0:00:05]} Nf6 {[%emt 0:00:05]} 5. O-O {[%emt 0:00:09]} Be7 {[%emt 0:00:10]} 6. Re1 {[%emt 0:00:36]} b5 {[%emt 0:00:10]} 7. Bb3 {[%emt 0:00:04]} O-O {[%emt 0:00:05]} 8. a4 {[%emt 0:00:15]} Bb7 {[%emt 0:00:42]} 9. d3 {[%emt 0:01:34]} d6 {[%emt 0:00:10]} 10. Nbd2 {[%emt 0:00:40]} Nd7 {[%emt 0:03:20]} 11. c3 {[%emt 0:00:49]} Nc5 {[%emt 0:07:47]} 12. axb5 {[%emt 0:01:05] 12.axb5 is better than 12.Bc2.} axb5 {[%emt 0:00:03]} 13. Rxa8 {[%emt 0:00:08]} Qxa8 {[%emt 0:00:03]} 14. Bc2 {[%emt 0:00:13] C88: Closed Ruy Lopez: Anti-Marshall Systems.} b4 {[%emt 0:00:10]} 15. d4 {[%emt 0:00:25]} bxc3 {[%emt 0:00:14]} 16. bxc3 {[%emt 0:00:08] The position is equal.} Nd7 {[%emt 0:00:02]} 17. Nf1 {[%emt 0:00:43][%cal Bd2f1,Bf1e3,Be3f5][%mdl 32]} Bf6 {[%emt 0:02:14]} 18. Ne3 {[%emt 0:33:00]} exd4 {[%emt 0:07:46]} 19. cxd4 {[%emt 0:00:24]} Nb4 {[%emt 0:00:12] [#]} 20. Nf5 $146 {[%emt 0:06:58]} ({Predecessor:} 20. Ng4 Nxc2 21. Qxc2 Bd8 22. d5 Re8 23. Ne3 Nf6 24. Nf5 Bc8 25. N5d4 Nd7 26. Nc6 {0-1 (45) Roberson,P (2437)-Sanal,V (2581) Chess.com INT 2020}) 20... Re8 {[%emt 0:30:55]} 21. Ba4 {[%emt 0:11:57]} Rd8 {[%emt 0:05:55]} (21... Bc6 $14 22. Bxc6 Qxc6) 22. Bxd7 $2 {[%emt 0:13:41]} (22. Ng5 $1 $18 {[%cal Od1h5] is the precise move to win. Black must now prevent Qh5!} h6 23. Nxf7 $1 Kxf7 24. Qh5+ g6 25. Nxh6+ Kg7 26. Nf5+ $1 gxf5 27. Bh6+ Kg8 28. Qg6+ Kh8 29. Bxd7 Rxd7 30. Qxf6+ Kh7 31. Qxf5+ Kxh6 32. Qe6+ Kh7 33. Qxd7+ Kh8 34. Qxc7) 22... Rxd7 $16 {[%emt 0:00:09]} 23. Qb3 {[%emt 0:01:08] Threatens to win with e5.} c5 {[%emt 0:12:21] [#]} (23... Bxe4 $2 24. Qxb4 (24. Ng3 Bxf3 25. gxf3 Nc6 $17) 24... Rd8 25. N3h4 $18) 24. Bf4 {[%emt 0:08:26]} ({White should try} 24. Bg5 $1 $16 {[%cal Rg5f6] Hoping for Bxf6.} Bxg5 25. Nxg5) 24... Bxe4 $11 {[%emt 0:03:57]} 25. Nxd6 {[%emt 0:00:55]} Bd5 {[%emt 0:02:39] A strong pair of Bishops.} (25... Re7 $5 {[%cal Re4f3]} 26. Nxe4 Rxe4 27. Rxe4 Qxe4 $11) 26. Qa4 {[%emt 0:00:53]} Rd8 $17 {[%emt 0:01:15]} 27. Qb5 {[%emt 0:10:10]} (27. Qxa8 $17 Rxa8 28. Re8+ (28. dxc5 $2 Nd3 $19) 28... Rxe8 29. Nxe8) 27... Bxf3 {[%emt 0:10:26]} 28. gxf3 {[%emt 0:00:13]} Nc2 $36 {[%emt 0:00:26][%mdl 2048] Black has strong initiative.} 29. Rd1 {[%emt 0:05:54]} (29. Re4 Nxd4 30. Qb7 Nxf3+ 31. Kg2 Nh4+ 32. Kf1) 29... Qxf3 $19 {[%emt 0:01:37]} 30. Qd3 {[%emt 0:03:28]} Qxf4 {[%emt 0:00:42]} 31. Nb7 {[%emt 0:00:32]} Qg4+ {[%emt 0:01:01]} 32. Kh1 {[%emt 0:00:13]} Rxd4 {[%emt 0:00:29] ( -> ...Ne3)} 33. Re1 {[%emt 0:00:23] Prevents Ne3.} Nxe1 {[%emt 0:00:16] Weighted Error Value: White=1.46/Black=0.28 (precise)} ({But not} 33... Rxd3 34. Re8#) 0-1

[Event "41st Zalakaros Festival 2022"]
[Site "Zalakaros"]
[Date "2022.06.06"]
[Round "2.2"]
[White "Horvath, Adam"]
[Black "Pasztor, Ferenc"]
[Result "0-1"]
[ECO "C42"]
[WhiteElo "2513"]
[BlackElo "2195"]
[Annotator "TA"]
[PlyCount "78"]
[EventDate "2022.06.05"]
[EventType "swiss"]
[EventCountry "HUN"]
[SourceTitle "playchess.com"]
[Source "ChessBase"]
[SourceQuality "1"]
[TimeControl "40/5400+30:1800+30"]

{[%evp 9,78,24,46,42,40,0,45,6,56,28,23,0,30,0,30,11,50,45,58,35,54,-38,-37,-40,-49,-29,-20,-47,-22,-27,-23,-25,0,0,0,-92,-114,-139,-135,-142,-142,-130,-28,-28,25,37,61,0,0,0,74,29,71,8,11,-267,-174,-110,-97,-786,-759,-1086,-1002,-2478,-2451,-2221,-2019,-3128,-3122,-2490,-1400]} 1. e4 {[%emt 0:01:10]} e5 {[%emt 0:00:38]} 2. Nf3 {[%emt 0:00:06]} Nf6 {[%emt 0:00:10]} 3. Nxe5 {[%emt 0:00:07]} d6 {[%emt 0:00:06]} 4. Nf3 {[%emt 0:00:03]} Nxe4 {[%emt 0:00:09]} 5. Bd3 {[%emt 0:00:07]} Nc5 {[%emt 0:01:58]} 6. Be2 {[%emt 0:00:30] C42: Petroff Defence: 3 Nxe5 and unusual White 3rd moves.} d5 {[%emt 0:00:40]} 7. O-O {[%emt 0:01:55]} Be7 {[%emt 0:00:39]} 8. Re1 {[%emt 0:15:06] White is slightly better.} (8. d4 $5 {[%cal Rd4c5]} Ne4 9. c4 $14) 8... O-O {[%emt 0:03:10] [#]} (8... d4 $11) 9. c3 $146 {[%emt 0:01:53]} ({Predecessor:} 9. d4 Ne6 10. c4 c6 11. Nc3 Re8 12. Be3 Bf6 13. cxd5 cxd5 14. Qb3 Nc7 15. Ne5 {0-1 (33) Kosteniuk,A (2518)-Jobava,B (2582) Chess.com INT 2021}) 9... Bf5 {[%emt 0:03:12]} 10. d3 {[%emt 0:02:29][%cal Bd2d3,Bd3d4][%mdl 32]} (10. d4 $5 {[%cal Rd4c5]} Ne6 11. Bd3 Bxd3 12. Qxd3 $11) 10... Nc6 {[%emt 0:06:26]} 11. Na3 {[%emt 0:06:36]} (11. d4 $5 {[%cal Rd4c5]} Ne4 12. Nbd2 $11) 11... Bf6 {[%emt 0:06:04]} 12. Nc2 {[%emt 0:06:44]} Qd7 {[%emt 0:11:33]} 13. d4 {[%emt 0:13:12]} Ne4 {[%emt 0:01:33]} 14. Bf4 {[%emt 0:00:41]} g5 {[%emt 0:05:15][%cal Bg7g5,Bg5g4][%mdl 32]} 15. Be5 {[%emt 0:17:30]} (15. Bc1 $14) 15... g4 $15 {[%emt 0:05:12]} 16. Nd2 {[%emt 0:00:04]} ({Don't blunder} 16. Bxf6 $2 gxf3 17. Bb5 Nxf6 $19) 16... Bxe5 {[%emt 0:13:38]} 17. dxe5 {[%emt 0:00:28]} Nxe5 {[%emt 0:01:52]} 18. Ne3 $1 {[%emt 0:16:02]} Rad8 {[%emt 0:05:59]} 19. Nxe4 {[%emt 0:05:50]} dxe4 {[%emt 0:00:47]} 20. Qd4 {[%emt 0:00:27]} Rfe8 {[%emt 0:21:00]} (20... Qxd4 $2 21. cxd4 Nc6 22. Nxf5 $18) 21. Rad1 {[%emt 0:00:53]} b6 {[%emt 0:03:48] Inhibits Qc5.} 22. Nxf5 {[%emt 0:07:23]} (22. Qxd7 $11 Bxd7 23. Nd5) 22... Qxf5 $17 {[%emt 0:00:04]} 23. Qxd8 {[%emt 0:00:06]} Rxd8 {[%emt 0:00:05]} 24. Rxd8+ {[%emt 0:00:03]} Kg7 {[%emt 0:00:13][%cal Oe5f3]} 25. Bf1 {[%emt 0:00:29]} h5 {[%emt 0:00:50]} (25... c5 $17 {Strongly threatening ...h5.} 26. b4 Qf6) 26. Rd4 $11 {[%emt 0:00:41]} Ng6 {[%emt 0:05:40]} (26... Nd3 $142 27. Bxd3 exd3) 27. Rdxe4 {[%emt 0:00:56]} ({Inferior is} 27. Rexe4 c5 28. Ra4 b5 29. Bxb5 c4 $17) 27... h4 {[%emt 0:00:32]} 28. g3 {[%emt 0:01:07]} ({White should play} 28. a3 $14) 28... h3 {[%emt 0:00:13]} 29. R1e3 {[%emt 0:00:10]} Qd7 {[%emt 0:01:08]} (29... f6 $11) 30. Rd4 {[%emt 0:00:45]} (30. Be2 $5 {[%cal Re2g4]}) 30... Qc8 {[%emt 0:01:07]} 31. Bc4 {[%emt 0:01:45]} (31. f4 $16) 31... c5 {[%emt 0:00:51][%cal Bc7c5,Bc5c4][%mdl 32]} 32. Rd5 {[%emt 0:00:20][%mdl 8192]} (32. Rde4 $11) 32... Qc6 {[%emt 0:00:39] [#] Threatens to win with ...b5.} 33. a4 {[%emt 0:00:47] Prevents b5.} a6 {[%emt 0:00:02][%cal Ba7a6,Ba6b5][%mdl 32] aiming for ...b5.} ({Stronger than} 33... Qxa4 34. Bf1) 34. Re1 $2 {[%emt 0:00:31][%mdl 8192]} (34. Kf1 $17) 34... b5 $19 {[%emt 0:00:18] Black is clearly winning.} 35. axb5 {[%emt 0:00:04]} axb5 {[%emt 0:00:05]} 36. Ba2 {[%emt 0:00:05]} c4 {[%emt 0:00:05]} 37. Red1 {[%emt 0:00:28]} Ne7 {[%emt 0:00:15]} 38. Bb1 {[%emt 0:00:49]} Nxd5 {[%emt 0:00:54]} 39. Be4 {[%emt 0:00:03]} Qe6 {[%emt 0:02:16] Weighted Error Value: White=0.78/Black=0.25 (precise)} 0-1

[Event "41st Zalakaros Festival 2022"]
[Site "Zalakaros"]
[Date "2022.06.06"]
[Round "2.3"]
[White "Daroczi, Donat"]
[Black "Csonka, Balazs"]
[Result "1/2-1/2"]
[ECO "B62"]
[WhiteElo "2132"]
[BlackElo "2498"]
[Annotator "TA"]
[PlyCount "39"]
[EventDate "2022.06.05"]
[EventType "swiss"]
[EventCountry "HUN"]
[SourceTitle "playchess.com"]
[Source "ChessBase"]
[SourceQuality "1"]
[TimeControl "40/5400+30:1800+30"]

{[%evp 13,39,27,30,6,22,30,19,28,45,0,17,0,17,0,0,9,0,0,38,33,75,71,53,67,64,77,58,46]} 1. e4 {[%emt 0:01:23]} c5 {[%emt 0:00:41]} 2. Nf3 {[%emt 0:00:18]} Nc6 {[%emt 0:00:24]} 3. d4 {[%emt 0:00:07]} cxd4 {[%emt 0:00:05]} 4. Nxd4 {[%emt 0:00:05]} Nf6 {[%emt 0:00:07]} 5. Nc3 {[%emt 0:00:06]} d6 {[%emt 0:00:08]} 6. Bg5 {[%emt 0:00:06][%cal Bc1g5,Bg5h4,Bh4g3][%mdl 32]} e6 {[%emt 0:00:15]} 7. Bb5 {[%emt 0:00:08]} Bd7 {[%emt 0:00:08]} 8. Qd3 $1 {[%emt 0:01:37][%mdl 4] is currently scoring better than 8.Bxc6. B62: Sicilian: Richter-Rauzer: 6...e6: Unusual White 7th moves.} h6 {[%emt 0:00:31]} 9. Bh4 {[%emt 0:00:05]} Be7 {[%emt 0:03:34]} 10. O-O-O {[%emt 0:00:55] The position is equal.} Ne5 {[%emt 0:00:13]} 11. Qe2 {[%emt 0:04:10] [#]} (11. Qh3 $5 {[%cal Rh4f6]}) 11... g5 $146 {[%emt 0:01:04]} (11... a6 $5 {[%cal Ra6b5]} 12. Bxd7+ Nexd7 $11) ({Predecessor:} 11... O-O 12. f4 Ng6 13. Bg3 a6 14. Bxd7 Nxd7 15. f5 exf5 16. Nxf5 Re8 17. Bxd6 Bf6 {1-0 (45) Sadhwani,R (2522)-Durarbayli,V (2625) Moscow 2020}) 12. Bg3 {[%emt 0:00:13]} a6 $1 {[%emt 0:00:33]} 13. Bxd7+ {[%emt 0:11:59]} Nfxd7 {[%emt 0:00:25]} 14. Nf3 {[%emt 0:02:28]} Qa5 {[%emt 0:13:51]} 15. Nxe5 {[%emt 0:11:37]} dxe5 {[%emt 0:06:04]} 16. Kb1 {[%emt 0:07:37]} Bb4 {[%emt 0:18:53] [#]} 17. Rd3 {[%emt 0:05:45]} Rc8 {[%emt 0:02:13][%cal Rb4c3]} 18. Nd1 {[%emt 0:07:13]} ({Much worse is} 18. Rhd1 Bxc3 19. Rxc3 (19. Rxd7 $2 Qb4 $19) 19... Rxc3 $15) 18... h5 {[%emt 0:09:35] ...h4 is the strong threat.} 19. a3 {[%emt 0:08:49]} Be7 {[%emt 0:03:56] Threatens to win with ...h4.} 20. f3 {[%emt 0:00:09] Weighted Error Value: White=0.08 (flawless) /Black=0.08 (flawless)} 1/2-1/2

[Event "41st Zalakaros Festival 2022"]
[Site "Zalakaros"]
[Date "2022.06.06"]
[Round "2.4"]
[White "Pranav Vijay"]
[Black "Nemeth, Zalan"]
[Result "1-0"]
[ECO "B30"]
[WhiteElo "2265"]
[BlackElo "2177"]
[Annotator "TA"]
[PlyCount "41"]
[EventDate "2022.06.05"]
[EventType "swiss"]
[EventCountry "HUN"]
[SourceTitle "playchess.com"]
[Source "ChessBase"]
[SourceQuality "1"]
[TimeControl "40/5400+30:1800+30"]

{[%evp 9,41,41,47,15,13,18,68,56,62,72,67,47,75,64,109,120,152,137,212,110,91,111,94,99,117,92,386,373,349,250,339,346,375,352]} 1. e4 {[%emt 0:05:05]} c5 {[%emt 0:00:43]} 2. Nf3 {[%emt 0:00:08]} Nc6 {[%emt 0:00:08]} 3. Bb5 {[%emt 0:00:26]} e5 {[%emt 0:00:41]} 4. O-O {[%emt 0:00:12]} Bd6 {[%emt 0:00:39]} 5. c3 {[%emt 0:01:10]} a6 {[%emt 0:00:44]} 6. Bxc6 {[%emt 0:02:28] B30: Sicilian: 2...Nc6 3 Bb5, lines without ...g6.} dxc6 {[%emt 0:02:41]} 7. d4 {[%emt 0:00:09]} cxd4 {[%emt 0:01:59]} ({Black should play} 7... exd4 $11 8. cxd4 Bg4) 8. cxd4 $14 {[%emt 0:00:08] White is slightly better.} exd4 {[%emt 0:01:28]} 9. Qxd4 {[%emt 0:00:07] [#]} Bf8 $146 {[%emt 0:08:23]} ({Predecessor:} 9... f6 10. Nc3 Be6 11. Rd1 Bc7 12. Qb4 Qe7 13. Qxe7+ Nxe7 14. Na4 Kf7 15. Nc5 Rad8 {0-1 (45) Rutten,A (2104)-Boskovic,D (2451) Veliko Gradiste 2021}) 10. Qa4 {[%emt 0:04:09]} Nf6 {[%emt 0:04:04]} 11. Rd1 {[%emt 0:02:29]} Bd7 {[%emt 0:08:29]} 12. Nc3 {[%emt 0:01:54]} ({Much weaker is} 12. Qb3 $6 Qc7 $11) 12... Be7 {[%emt 0:03:33]} 13. Bg5 $1 {[%emt 0:01:18] Strongly threatening Ne5.} Qc8 {[%emt 0:07:06]} (13... h6 $16) 14. Rac1 {[%emt 0:05:23]} (14. Qd4 $18) 14... h6 $16 {[%emt 0:13:15]} 15. Bh4 {[%emt 0:06:22][%cal Bg5h4,Bh4g3,Bg3d6][%mdl 32] And now e5 would win.} g5 {[%emt 0:05:01] [#]} 16. Bg3 $36 {[%emt 0:06:34][%mdl 2048] Bd6 is the strong threat. White is in control.} O-O {[%emt 0:01:18] [#]} 17. Bd6 $1 {[%emt 0:01:50] White is more active.} Re8 {[%emt 0:03:24][%mdl 8192] Black cannot hold the game after this.} (17... Bxd6 $16 18. Rxd6 Be6) 18. Bxe7 $18 {[%emt 0:00:48]} Rxe7 {[%emt 0:00:06]} 19. e5 {[%emt 0:00:10]} Ne8 {[%emt 0:02:08]} 20. Qb4 {[%emt 0:01:20]} Re6 {[%emt 0:01:22]} 21. Na4 {[%emt 0:02:40] Weighted Error Value: White=0.16 (very precise) /Black=0.41} 1-0

[Event "41st Zalakaros Festival 2022"]
[Site "Zalakaros"]
[Date "2022.06.06"]
[Round "2.5"]
[White "Papp, Levente"]
[Black "Boronyak, Arpad"]
[Result "1-0"]
[ECO "E81"]
[WhiteElo "2401"]
[BlackElo "2126"]
[Annotator "TA"]
[PlyCount "77"]
[EventDate "2022.06.05"]
[EventType "swiss"]
[EventCountry "HUN"]
[SourceTitle "playchess.com"]
[Source "ChessBase"]
[SourceQuality "1"]
[TimeControl "40/5400+30:1800+30"]

{[%evp 17,77,100,94,106,107,98,120,102,162,157,116,110,197,203,190,187,200,195,284,275,288,247,244,237,255,204,287,287,417,406,480,479,677,667,641,632,622,595,585,582,662,666,688,620,818,772,875,893,992,981,901,784,2172,1405,1743,1690,2398,2081,29987,29988,29993,29990]} 1. d4 {[%emt 0:00:39]} Nf6 {[%emt 0:01:31]} 2. c4 {[%emt 0:00:07]} d6 {[%emt 0:01:06]} 3. Nc3 {[%emt 0:00:26]} g6 {[%emt 0:00:10]} 4. e4 {[%emt 0:00:13]} Bg7 {[%emt 0:00:16]} 5. f3 {[%emt 0:00:19]} O-O {[%emt 0:00:33]} 6. Nge2 {[%emt 0:00:14]} e5 {[%emt 0:04:15]} 7. Be3 {[%emt 0:00:08]} Nc6 {[%emt 0:01:40]} 8. d5 {[%emt 0:05:26]} Nb8 {[%emt 0:03:42]} 9. Qd2 {[%emt 0:04:56]} Nbd7 {[%emt 0:00:37]} 10. O-O-O {[%emt 0:10:04] E85: King's Indian: Sämisch: 6...e5.} a6 {[%emt 0:04:37]} 11. Kb1 {[%emt 0:03:34] [#]} Rb8 $146 {[%emt 0:11:33]} ({Predecessor:} 11... Nc5 12. Nc1 Bd7 13. Nd3 Qe7 14. Nxc5 dxc5 15. d6 cxd6 16. Qxd6 Qxd6 17. Rxd6 Be6 {1-0 (57) Contreras Rodriguez,H-Aguirre,A Villa Gesell 1971}) 12. g4 {[%emt 0:05:55] White is better.} b5 {[%emt 0:04:55]} (12... h5 $16) 13. cxb5 {[%emt 0:01:35]} axb5 {[%emt 0:00:07][%cal Of6g4]} 14. Nc1 {[%emt 0:00:28][%cal Be2c1,Bc1a2,Ba2b4,Bb4c6][%mdl 32]} Ba6 {[%emt 0:11:21]} (14... b4 $16) 15. a4 $18 {[%emt 0:01:37][%cal Ba2a4,Ba4b5,Bb5c6][%mdl 32]} Nb6 {[%emt 0:05:21][%cal Ob5b4]} 16. axb5 {[%emt 0:02:30]} Bc8 {[%emt 0:02:53]} 17. N1a2 {[%emt 0:00:56]} Bd7 {[%emt 0:04:01]} (17... Ra8 $142 18. Nb4 Qe8) 18. Nb4 {[%emt 0:00:46]} Ra8 {[%emt 0:02:12]} 19. Nc6 {[%emt 0:00:46]} Bxc6 {[%emt 0:00:26]} 20. bxc6 {[%emt 0:04:01]} Qb8 {[%emt 0:01:02]} 21. Kc2 {[%emt 0:06:58]} Na4 {[%emt 0:03:39]} (21... Ra5 $142 22. Qd3 Na4) 22. Nb5 {[%emt 0:06:33] Active counter play!} Rc8 {[%emt 0:01:22]} (22... Ne8 {was necessary.} 23. Ra1 f5) 23. Be2 {[%emt 0:01:33]} Ne8 {[%emt 0:03:22]} 24. Ra1 {[%emt 0:01:48]} Nc5 {[%emt 0:00:55]} (24... Nb6 $142 25. Qb4 f6 26. Nxc7 Qxc7 27. Qxb6 Rcb8 28. Qxc7 Nxc7) 25. b4 {[%emt 0:01:51]} Na4 {[%emt 0:01:01]} 26. Ra3 {[%emt 0:08:48]} Nb6 {[%emt 0:02:38]} 27. Rha1 {[%emt 0:00:17][%cal Bh1a1,Ba1a3,Ba3a7][%mdl 32]} Rxa3 {[%emt 0:00:30]} 28. Rxa3 {[%emt 0:00:02]} Rd8 {[%emt 0:00:18]} 29. Ra7 {[%emt 0:03:42]} f5 {[%emt 0:01:16]} 30. Bg5 {[%emt 0:04:03]} Rc8 {[%emt 0:02:26]} 31. gxf5 {[%emt 0:00:35]} gxf5 {[%emt 0:00:11]} 32. exf5 {[%emt 0:01:20]} Kh8 {[%emt 0:01:52]} 33. Kb3 {[%emt 0:05:50]} Nf6 {[%emt 0:01:07]} 34. Bc4 {[%emt 0:05:43]} Re8 {[%emt 0:06:06]} 35. Bxf6 {[%emt 0:03:19]} Bxf6 {[%emt 0:00:17]} 36. Rxc7 {[%emt 0:01:23] [#] Black must now prevent Qh6.} Qa8 {[%emt 0:02:51]} 37. Ra7 {[%emt 0:00:10]} Qc8 {[%emt 0:02:41]} 38. Nxd6 {[%emt 0:01:20]} Nxc4 {[%emt 0:02:36]} 39. Kxc4 {[%emt 0:00:36] Weighted Error Value: White=0.10 (very precise) /Black=0.75} 1-0

[Event "41st Zalakaros Festival 2022"]
[Site "Zalakaros"]
[Date "2022.06.06"]
[Round "2.6"]
[White "Dobai, Szabolcs"]
[Black "Okhotnik, Vladimir"]
[Result "0-1"]
[ECO "A36"]
[WhiteElo "2113"]
[BlackElo "2336"]
[Annotator "TA"]
[PlyCount "90"]
[EventDate "2022.06.05"]
[EventType "swiss"]
[EventCountry "HUN"]
[SourceTitle "playchess.com"]
[Source "ChessBase"]
[SourceQuality "1"]
[TimeControl "40/5400+30:1800+30"]

{[%evp 11,90,-11,0,0,0,0,4,0,0,0,12,5,9,0,16,19,11,15,15,14,64,64,69,58,63,61,104,55,61,63,177,148,162,23,106,45,59,40,61,50,127,-8,-8,-49,-65,-86,-44,-50,-2,-9,0,0,0,0,0,0,13,-15,-7,-6,-6,-8,-6,-6,-8,-105,-93,-178,-178,-436,-261,-319,-308,-307,-304,-300,-300,-442,-430,-483,-452]} 1. c4 {[%emt 0:03:36]} g6 {[%emt 0:00:54]} 2. g3 {[%emt 0:00:21]} c5 {[%emt 0:00:42]} 3. Bg2 {[%emt 0:00:06]} Nc6 {[%emt 0:00:21]} 4. Nc3 {[%emt 0:00:21]} Bg7 {[%emt 0:00:11]} 5. e4 {[%emt 0:01:49]} a6 {[%emt 0:01:36]} 6. Nge2 {[%emt 0:05:00]} Rb8 {[%emt 0:00:36]} 7. a4 {[%emt 0:01:17] A36: Symmetrical English vs ...g6: 4 Bg2 Bg7.} d6 {[%emt 0:01:29]} 8. O-O {[%emt 0:03:56]} e6 {[%emt 0:01:59]} 9. d3 {[%emt 0:00:16] The position is equal.} Nge7 {[%emt 0:00:14]} 10. Rb1 {[%emt 0:06:25]} O-O {[%emt 0:01:18]} 11. Be3 {[%emt 0:00:56]} Nd4 {[%emt 0:00:42]} 12. b4 {[%emt 0:02:53]} b6 {[%emt 0:10:45]} (12... cxb4 $5 {[%cal Rd4c6]} 13. Bxd4 Bxd4 14. Nxd4 bxc3 $11) 13. Qd2 {[%emt 0:07:03]} Nec6 {[%emt 0:05:02]} 14. b5 {[%emt 0:02:31]} axb5 {[%emt 0:01:26]} 15. axb5 {[%emt 0:04:48]} Ne7 {[%emt 0:02:48]} (15... Nxe2+ $11 16. Nxe2 Ne5) 16. Bh6 $14 {[%emt 0:14:58] [#]} e5 $146 {[%emt 0:03:14]} ({Predecessor:} 16... Bb7 17. Bxg7 Kxg7 18. Nxd4 cxd4 19. Ne2 e5 20. Ra1 Qc7 21. Ra2 Ra8 22. Rfa1 Rxa2 23. Rxa2 {1-0 (62) Peelen,P-Fuller,K Ramsgate 1984}) 17. Nxd4 {[%emt 0:01:47]} exd4 {[%emt 0:00:21]} 18. Ne2 {[%emt 0:00:40]} f5 {[%emt 0:05:17]} 19. Ra1 {[%emt 0:03:08]} ({White should try} 19. Bg5 $16) 19... fxe4 {[%emt 0:04:08]} 20. Bxe4 {[%emt 0:06:21]} Qd7 {[%emt 0:05:25]} ({Black should play} 20... Bxh6 $14 21. Qxh6 Rf7) 21. Bxg7 {[%emt 0:04:11]} Kxg7 {[%emt 0:00:05]} 22. Ra2 {[%emt 0:00:41]} (22. Nf4 $18) 22... Bb7 {[%emt 0:03:39] [#]} (22... d5 $11 23. cxd5 Nxd5) 23. Ra7 {[%emt 0:02:24]} (23. Bxb7 $1 $16 Rxb7 24. Re1) 23... d5 {[%emt 0:02:55]} 24. cxd5 {[%emt 0:02:39] aiming for Nf4.} Nc8 {[%emt 0:00:34]} 25. Raa1 {[%emt 0:08:45]} Bxd5 {[%emt 0:03:20]} ({Better is} 25... Ne7 $1 $14) 26. Qg5 {[%emt 0:01:35]} (26. Bxd5 $16 Qxd5 27. Nf4) 26... Bxe4 $11 {[%emt 0:02:18]} 27. Qe5+ {[%emt 0:00:50]} (27. dxe4 $5 {[%cal Rg5e5]} Nd6 28. Nf4 $15) 27... Kg8 {[%emt 0:01:23]} 28. dxe4 {[%emt 0:03:07]} Qd6 {[%emt 0:02:05]} 29. Qg5 {[%emt 0:00:24]} Rb7 {[%emt 0:04:12]} (29... Qf6 $15 {might be stronger.} 30. Qxf6 Rxf6) 30. Nf4 {[%emt 0:03:24]} Re7 {[%emt 0:00:54]} 31. Rfe1 {[%emt 0:00:59]} Qe5 {[%emt 0:01:27]} 32. Qxe5 {[%emt 0:01:57]} Rxe5 {[%emt 0:00:05]} 33. Nd5 {[%emt 0:00:26]} d3 {[%emt 0:03:19]} 34. Rad1 {[%emt 0:00:34]} c4 $1 {[%emt 0:00:34] next ...Nd6 is good for Black.} 35. f4 {[%emt 0:00:51] [#]} Rxd5 {[%emt 0:01:47]} 36. exd5 {[%emt 0:00:08][%mdl 4096] Endgame Re6 is the strong threat. KRR-KRN} Nd6 {[%emt 0:00:19]} 37. Re6 {[%emt 0:00:30]} Rd8 {[%emt 0:01:29]} 38. Kf2 {[%emt 0:01:16]} (38. Kf1 $1 $11) 38... Nxb5 $17 {[%emt 0:00:14] White must now prevent ...Nc3.} 39. Rc6 {[%emt 0:02:34]} (39. Rxb6 $17 {is a better defense.} Nc3 40. Rd2) 39... Nc3 $19 {[%emt 0:02:06]} 40. Rd2 {[%emt 0:00:00]} (40. Rxd3 Ne4+ 41. Ke3 cxd3 42. Kxd3 (42. Kxe4 {is a self mate.} d2 43. Re6 d1=Q 44. d6 Qe2+ 45. Kd5 Qd3+ 46. Ke5 Qf5+ 47. Kd4 Qxe6 48. Kd3 Rxd6+ 49. Kc2 Qe3 50. h4 Rd2+ 51. Kc1 Qe1#) 42... Nf2+ 43. Kd4) 40... b5 {[%emt 0:00:00]} (40... Ne4+ $142 41. Ke3 Nxd2 42. Kxd2 b5) 41. Rxd3 {[%emt 0:02:58]} Ne4+ {[%emt 0:02:03]} ({Worse is} 41... cxd3 42. Rxc3 Rxd5 43. Ke1 $11) 42. Ke3 {[%emt 0:00:04] Threatens to win with Ra3.} cxd3 {[%emt 0:00:03]} 43. Kxd3 {[%emt 0:00:05] [#]} Nd6 {[%emt 0:00:28]} 44. Kd4 {[%emt 0:00:11]} (44. Rb6 {might work better.}) 44... Nf5+ {[%emt 0:00:46]} 45. Kc5 {[%emt 0:00:27] [#]} Rxd5+ $3 {[%emt 0:00:11][%mdl 512] What a bad dream for White.  Weighted Error Value: White=0.42/Black=0.20 (precise)} 0-1